Cogmind - Beta 9 @@@ ROGUE MODE // 2019.10.24 @ 03:28:13 // Halloween2019/Abominations Player: Nikolayag Result: Destroyed by Minor Abomination with Flak Gun Performance ------------- Evolutions (3) 1500 Regions Visited (4) 800 Robots Destroyed (6) 30 Value Destroyed (244) 244 Prototype IDs (0) 0 Alien Tech Used (0) 0 Bonus (0) 0 TOTAL SCORE: 2574 Bonus ------- None Cogmind --------- Core Integrity 0/700 Matter 174/300 Energy 100/100 System Corruption 4% Temperature Cool (0) Location -7/Factory Parts ------- Power (1) Propulsion (2) Utility (8) Weapon (2) Inventory (4) Light Ion Engine Large Storage Unit Heavy Armor Plating Peak State ------------ Power Light Ion Engine Propulsion Wheel Compact Wheel Utility Large Storage Unit Large Storage Unit Advanced Weight Redist. System Improved Sensor Array Advanced Terrain Scan Processor Heavy Armor Plating Hacking Suite Weapon Assault Rifle Inventory Ion Engine Light Ion Engine Light Ion Engine Hover Unit Small Storage Unit Large Storage Unit Heavy Armor Plating Heavy Armor Plating Assault Rifle Light Assault Rifle [Rating: 26] Favorites ----------- Power Ion Engine Engine Ion Engine Propulsion Wheel Treads Light Treads Wheel Wheel Hover Unit Hover Unit Utility Large Storage Unit Device Improved Sensor Array Storage Large Storage Unit Processor Advanced Terrain Scan Processor Hackware Hacking Suite Protection Heavy Armor Plating Weapon Assault Rifle Ballistic Gun Assault Rifle Slashing Weapon Katana Build | -11 -10 -9 -8 -7 ------- Run | Scr Mat Mat Mat Fac Slots Evolved 6 | . . 2 2 2 Power . | . . . . . Propulsion . | . . . . . Utility 6 | . . 2 2 2 Weapon . | . . . . . Parts Attached 34 | 7 . . 12 15 Power 3 | 1 . . 1 1 Engine 3 | 1 . . 1 1 Core . | . . . . . Reactor . | . . . . . Propulsion 11 | 3 . . 5 3 Treads 2 | 1 . . 1 . Leg . | . . . . . Wheel 6 | 2 . . 2 2 Hover 3 | . . . 2 1 Flight . | . . . . . Utility 14 | 1 . . 6 7 Device 3 | . . . 1 2 Storage 5 | 1 . . 3 1 Processor 3 | . . . . 3 Hackware 1 | . . . 1 . Protection 2 | . . . 1 1 Artifact . | . . . . . Weapon 6 | 2 . . . 4 Energy Gun . | . . . . . Energy Cannon . | . . . . . Ballistic Gun 5 | 2 . . . 3 Ballistic Cannon . | . . . . . Launcher . | . . . . . Special Weapon . | . . . . . Impact Weapon . | . . . . . Slashing Weapon 1 | . . . . 1 Piercing Weapon . | . . . . . Special Melee Weapon . | . . . . . Unidentified Prototypes . | . . . . . Parts Lost 11 | . . . . 11 Power 2 | . . . . 2 Propulsion 4 | . . . . 4 Utility 2 | . . . . 2 Weapon 3 | . . . . 3 Highest Loss Streak 7 | . . . . 7 Average Slot Usage (%) 71 | . 85 66 66 73 Engine 7 | . 14 11 9 6 Treads 2 | . 14 11 3 . Wheel 6 | . 14 11 7 4 Hover 3 | . . . 5 3 Device 7 | . . . 8 8 Storage 13 | . 14 11 10 14 Processor 9 | . . . . 15 Hackware 5 | . . . 5 6 Protection 1 | . . . 2 2 Ballistic Gun 11 | . 28 22 14 8 Naked Turns 2 | . . . . 2 Heaviest Build 58 | 12 12 12 52 58 Greatest Support 29 | 20 10 10 29 26 Greatest Overweight (x) 9 | 1 1 1 2 9 Average Overweight (x) 1 | . 1 1 . 2 Largest Inventory Capacity 16 | 6 6 6 16 16 Average Capacity 11 | 5 6 6 8 15 Most Carried 13 | 6 6 6 12 13 Average Carried 9 | 2 6 6 7 11 Final Capacity 4 | . . . . 4 Final Carried 4 | . . . . 4 Class Distribution -------------------- 100% | Mutant Dominant Class ---------------- Mutant | -10/Materials Mutant | -9/Materials Mutant | -8/Materials Mutant | -7/Factory Resources | -11 -10 -9 -8 -7 ----------- Run | Scr Mat Mat Mat Fac Matter Collected 507 | 153 . . 96 258 Remotely . | . . . . . Salvage Created 219 | 58 . . . 161 Parts 10 | 3 . . . 7 Haulers Intercepted . | . . . . . Recyclers Shooed . | . . . . . Parts Field Recycled . | . . . . . Retrieved Matter . | . . . . . Parts Self-Destructed . | . . . . . Prevented . | . . . . . Kills | -11 -10 -9 -8 -7 ------- Run | Scr Mat Mat Mat Fac Combat Hostiles Destroyed 5 | . . . . 5 Guns 4 | . . . . 4 AOE 1 | . . . . 1 Classes Destroyed 3 | 1 . . . 2 Recycler 1 | 1 . . . . Swarmer 4 | . . . . 4 Abomination 1 | . . . . 1 Best Kill Streak 2 | 1 . . . 2 Combat Bots Only 2 | . . . . 2 Max Kills in Single Turn 1 | 1 . . . 1 Gunslinging . | . . . . . Exploded 1 | . . . . 1 Melee . | . . . . . Uniques/NPCs Destroyed . | . . . . . Combat | -11 -10 -9 -8 -7 -------- Run | Scr Mat Mat Mat Fac Damage Taken 2821 | . 68 135 346 2272 Core 951 | . 35 23 190 703 Absorbed by Shields . | . . . . . Core Remaining (%) 86 | 100 86 94 65 . Volleys Fired 25 | 4 . . . 21 Largest 2 | 2 . . . 2 Hottest 43 | 40 . . . 43 Shots Fired 49 | 8 . . . 41 Gun 49 | 8 . . . 41 Cannon . | . . . . . Launcher . | . . . . . Special . | . . . . . Kinetic 49 | 8 . . . 41 Thermal . | . . . . . Explosive . | . . . . . Electromagnetic . | . . . . . Robot Hit Streak 9 | 2 . . . 9 Robot Miss Streak 1 | 1 . . . 1 Penetration Max . | . . . . . Secondary Targets 1 | . . . . 1 Max Gunslinging Chain 1 | . . . . 1 Shots Hit Robots 37 | 4 . . . 33 Core Hits 15 | 2 . . 1 12 Critical Hits . | . . . . . Critical Kills . | . . . . . Critical Parts Destroyed . | . . . . . Melee Attacks 4 | . . . . 4 Impact . | . . . . . Slashing 4 | . . . . 4 Piercing . | . . . . . Sneak Attacks . | . . . . . Combat Hostiles . | . . . . . Follow-up Attacks . | . . . . . Damage Inflicted 689 | 36 . 10 9 634 Guns 352 | 36 . . . 316 Cannons . | . . . . . Explosions 224 | . . . . 224 Melee 94 | . . . . 94 Ramming 19 | . . 10 9 . Kinetic 352 | 36 . . . 316 Thermal 224 | . . . . 224 Explosive . | . . . . . Electromagnetic . | . . . . . Impact . | . . . . . Slashing 94 | . . . . 94 Piercing . | . . . . . Highest Corruption 5 | . . . 5 4 Average Corruption 3 | . . . 3 3 Corruption Purged . | . . . . . Effects 5 | . . . 2 3 Message Errors 2 | . . . 1 1 Matter Fused 2 | . . . 1 1 Data Loss (minor) 1 | . . . . 1 Overload Shots . | . . . . . Overflow Damage 25 | . . . . 25 Projectiles . | . . . . . Explosions 25 | . . . . 25 Melee . | . . . . . Knockbacks . | . . . . . Impact . | . . . . . Kinetic . | . . . . . Secondary . | . . . . . Self-Inflicted Damage 224 | . . 5 4 215 Shots 3 | . . . . 3 Rammed 2 | . . 1 1 . Targets Rammed 2 | . . 1 1 . Kicked . | . . . . . Crushed . | . . . . . Highest Temperature 736 | . . . 736 128 Average Temperature 328 | . . . 382 48 Received Heat Transfer 234 | . 36 48 9 141 Effects 13 | . . . 13 . Shutdowns 2 | . . . 2 . Energy Bleed 1 | . . . 1 . Interference 1 | . . . 1 . Matter Decay 4 | . . . 4 . Damage (minor) 3 | . . . 3 . Damage (major) 1 | . . . 1 . Damage (core) 1 | . . . 1 . Siege Activations . | . . . . . Robots Corrupted . | . . . . . Combat Hostiles . | . . . . . Parts Fried . | . . . . . Impact Corruptions . | . . . . . Robots Melted . | . . . . . Combat Hostiles . | . . . . . Parts Melted . | . . . . . Heat Transferred 200 | . . . . 200 Parts Sabotaged . | . . . . . Parts Stolen . | . . . . . Parts Stripped . | . . . . . Power Chain Reactions . | . . . . . Missiles Intercepted . | . . . . . Alert | -11 -10 -9 -8 -7 ------- Run | Scr Mat Mat Mat Fac Peak Influence 190 | 5 3 56 36 190 Average Influence 68 | . 3 35 30 103 Maximum Alert Level . | . . . . . Low Security (%) 100 | . . . . . Level 1 . | . . . . . Level 2 . | . . . . . Level 3 . | . . . . . Level 4 . | . . . . . Level 5 . | . . . . . High Security . | . . . . . Max Security . | . . . . . Squads Dispatched 31 | . 1 1 3 26 Investigation 5 | . . 1 . 4 Extermination . | . . . . . Reinforcement 12 | . 1 . 3 8 Assault 5 | . . . . 5 Garrison 9 | . . . . 9 Intercept . | . . . . . Construction Impeded . | . . . . . Haulers Reinforced 3 | . . . . 3 Stealth | -11 -10 -9 -8 -7 --------- Run | Scr Mat Mat Mat Fac Distress Signals 16 | . . 3 7 6 Communications Jammed . | . . . . . Distress Signals . | . . . . . Times Spotted 21 | . 2 4 4 11 Peak Tracking Total 6 | . 2 4 3 6 Tactical Retreats 1 | . . . 1 . Traps | -11 -10 -9 -8 -7 ------- Run | Scr Mat Mat Mat Fac Traps Triggered 1 | . . 1 . . Indirectly . | . . . . . Trap Hack Attempts . | . . . . . Triggered . | . . . . . Disarmed . | . . . . . Reprogrammed . | . . . . . Reused . | . . . . . Traps Extracted . | . . . . . Installed . | . . . . . Triggered . | . . . . . Machines | -11 -10 -9 -8 -7 ---------- Run | Scr Mat Mat Mat Fac Machines Disabled 5 | . . . . 5 Max in Single Turn 5 | . . . . 5 Garrison Access 1 | . . . . 1 Machines Sabotaged . | . . . . . Garrisons Compromised . | . . . . . Overloaded Fab Kills . | . . . . . Fab Network Shutdowns . | . . . . . Hacking | -11 -10 -9 -8 -7 --------- Run | Scr Mat Mat Mat Fac Machines Accessed 4 | . . 2 2 . Terminals 4 | . . 2 2 . Fabricators . | . . . . . Repair Stations . | . . . . . Recycling Units . | . . . . . Scanalyzers . | . . . . . Garrison Access . | . . . . . Total Hacks 19 | . . 10 9 . Successful 11 | . . 6 5 . Failed 8 | . . 4 4 . Catastrophic . | . . . . . Database Lockouts . | . . . . . Manual 18 | . . 10 8 . Terminals 19 | . . 10 9 . Fabricators . | . . . . . Repair Stations . | . . . . . Recycling Units . | . . . . . Scanalyzers . | . . . . . Garrison Access . | . . . . . Terminal Hacks 4 | . . 2 2 . Hauler Manifests 1 | . . . 1 . Zone Layout 3 | . . 2 1 . Fabricator Hacks . | . . . . . Repair Station Hacks . | . . . . . Recycling Unit Hacks . | . . . . . Scanalyzer . | . . . . . Garrison Access Hacks . | . . . . . Unauthorized Hacks 19 | . . 11 8 . Terminals 7 | . . 4 3 . Track 1 | . . 1 . . Botnet 4 | . . 2 2 . Operators 2 | . . 1 1 . Fabricators . | . . . . . Repair Stations . | . . . . . Recycling Units . | . . . . . Scanalyzers . | . . . . . Garrison Access . | . . . . . Data Cores Recovered . | . . . . . Used . | . . . . . Hacking Detections 4 | . . 2 2 . Full Trace Events 1 | . . 1 . . Feedback Events . | . . . . . Feedback Blocked . | . . . . . Robot Schematics Acquired . | . . . . . Robots Built . | . . . . . Matter . | . . . . . Time . | . . . . . Total Robot Build Rating . | . . . . . Part Schematics Acquired . | . . . . . Parts Built . | . . . . . Matter . | . . . . . Time . | . . . . . Total Part Build Rating . | . . . . . Parts Repaired . | . . . . . Time . | . . . . . Parts Recycled . | . . . . . Recycled Matter . | . . . . . Retrieved Matter . | . . . . . Retrieved Components . | . . . . . Parts Scanalyzed . | . . . . . Part Schematics Acquired . | . . . . . Parts Damaged . | . . . . . Bothacking | -11 -10 -9 -8 -7 ------------ Run | Scr Mat Mat Mat Fac Used RIF Installer . | . . . . . Robots Hacked . | . . . . . Non-combat . | . . . . . Combat . | . . . . . Robot Hacks Applied . | . . . . . Relay Couplers Released 3 | . . . . 3 Programmers 3 | . . . . 3 Robots Rewired . | . . . . . Allies Hacked . | . . . . . Hacks Repelled . | . . . . . Allies | -11 -10 -9 -8 -7 -------- Run | Scr Mat Mat Mat Fac Total Allies . | . . . . . Largest Group . | . . . . . Highest-Rated Group . | . . . . . Highest-Rated Ally . | . . . . . Total Orders . | . . . . . Ally Attacks . | . . . . . Total Damage . | . . . . . Kills . | . . . . . Allies Corrupted . | . . . . . Allies Melted . | . . . . . Intel | -11 -10 -9 -8 -7 ------- Run | Scr Mat Mat Mat Fac Robot Analysis Total . | . . . . . Derelict Logs Recovered . | . . . . . Drone Launches . | . . . . . Drone Recoveries . | . . . . . Exploration | -11 -10 -9 -8 -7 ------------- Run | Scr Mat Mat Mat Fac Turns Passed 900 | 76 39 71 212 502 Spaces Moved 563 | 55 44 72 199 193 Core 21 | 3 . . . 18 Treads 40 | 2 . . 38 . Legs . | . . . . . Wheels 341 | 50 44 72 70 105 Hover 161 | . . . 91 70 Flight . | . . . . . Fastest Speed 50 | 50 90 90 56 50 Average Speed 128 | 86 90 90 92 201 Slowest Speed 600 | 160 90 90 170 600 Overloaded Moves . | . . . . . Propulsion Burnouts . | . . . . . Robots Hopped . | . . . . . Cave-ins Triggered 1 | . . . . 1 Exploration Rate (%) 12 | 4 13 15 24 8 Regions Visited 4 Branch Regions . Pre-discovered Areas . | . . . . . Known Exits Taken . | . . . . . Unknown Exits Taken 4 | 1 1 1 1 . Scrap Searched . | . . . . . Spaces Dug . | . . . . . Terrain Destroyed 37 | . . . . 37 Melee . | . . . . . Projectile . | . . . . . AOE 37 | . . . . 37 Actions | -11 -10 -9 -8 -7 --------- Run | Scr Mat Mat Mat Fac Total 668 | 72 43 72 225 256 Wait 21 | 1 . . 2 18 Move 559 | 54 43 71 198 193 Hop . | . . . . . Pick Up 13 | 5 . . 4 4 Fast Attach 21 | 7 . . 6 8 Attach 7 | . . . 2 5 Detach 5 | 1 . . 3 1 Swap 6 | . . . 4 2 Drop 5 | . . . 5 . Fire 25 | 4 . . . 21 Melee 4 | . . . . 4 Ram 2 | . . 1 1 . Kick . | . . . . . Crush . | . . . . . Escape Stasis . | . . . . . Rewire . | . . . . . Trap . | . . . . . Miscellaneous . | . . . . . Route ------- -11/Scrapyard -10/Materials -9/Materials -8/Materials -7/Factory History --------- Turn | Location | Event 24 | -11/Scrapyard | Discovered new exit (range 16) 77 | -11/Scrapyard | Entered Materials 103 | -10/Materials | Discovered new exit (range 16) 116 | -10/Materials | Entered another Materials area 116 | -9/Materials | Evolved 2 slots: Utility x2 144 | -9/Materials | Discovered new exit (range 13) 152 | -9/Materials | Discovered new exit (range 15) 187 | -9/Materials | Entered another Materials area 187 | -8/Materials | Evolved 2 slots: Utility x2 330 | -8/Materials | Build established: Mutant 382 | -8/Materials | Discovered new exit (range 5) 399 | -8/Materials | Entered Factory 399 | -7/Factory | Evolved 2 slots: Utility x2 412 | -7/Factory | Garrison activated, responded to threat 453 | -7/Factory | Garrison activated, responded to threat 522 | -7/Factory | Garrison activated, responded to threat 548 | -7/Factory | Crushed by falling debris 607 | -7/Factory | Lost 7 parts (1p2n2u2w) 804 | -7/Factory | Garrison activated, responded to threat 843 | -7/Factory | Core integrity fell below 50% 891 | -7/Factory | Core integrity fell below 20% 894 | -7/Factory | Lost 4 parts (1p2n1w) 899 | -7/Factory | Released all parts (10) 901 | -7/Factory | Destroyed by Minor Abomination with Flak Gun Last Messages --------------- 00887_ Manufacturing Mainframe disabled. 00893_ Knocked back. 00897_ Wheel severed. 00897_ Knocked back. 00899_ Released Com. Wheel. 00899_ Released Enh. Optical Array. 00899_ Released Imp. Targeting Computer. 00899_ Released Lrg. Storage Unit. 00899_ Released Hacking Suite. 00899_ Released Adv. Terrain Scan Processor. 00899_ Released Imp. Sensor Array. 00899_ Released Adv. Weight Redist. System. 00899_ Released Sml. Storage Unit. 00899_ Released Katana. 00900_ Minor Abomination absorbs Lgt. Nuclear Core. 00900_ Minor Abomination absorbs Com. Wheel. 00900_ Lesser Abomination spits out Sml. Storage Unit. 00900_ Lesser Abomination absorbs Lrg. Storage Unit. 00901_ Minor Abomination absorbs Lgt. Ion Engine. 00901_ Minor Abomination absorbs Lgt. Nuclear Core. Map ----- +----------------------------------------------------+ | ?????????????????????????????????????????????????? | | ?????????????????????????????????????????????????? | | ?????????????????????????????????????????????????? | | ?????????????????????????????????????????????????? | | ?????????????????????????????????????????????????? | | ?????????????????????????????????????????????????? | | ????????????????????????????????? ???????????????? | | ????????????????????????????????? ?????#?????????? | | ????????????????????????????????? "??? #?????????? | | ?????????????????????????????????%"??? ??????????? | | ????????????????????????????????? """" ??????????? | | ????????????????????????????????? """" ??+######## | | ????????????????????????????????? """" ?? | | ????????????????????????????????? ## | | ?????????????????????????????????";;;"#"" | | ????????????????????????????????? ; ;"""" | | ???????????????????????##########;; " | | ???????????????????????# ; " | | ???????????????????????# """ # " | | ???????????????????????# """ # " | | ???????????????????????# "S # " | | ???????????????????????# """ [ # %" | | ???????????????????????# "" # " ? | | ???????????????????????# % # " ???? | | ???????????????????????# """" # ""#??????? | | ???????????????????????# @/"""" # ""######## | | ???????????????????????#[!!!""" + "" | | ???????????????????????# ]AA""" # "" | | ???????????????????????# A!A A! # "" """ " | | ???????????????????????############ "# """ " | | ???????????????????????????????### # """ " | | ???????????????????????????????# #! # % | | ??????????????????????????????## # # | | ??????????????????????????????#### # | | ???????????????????????##########" % + ""Y | | ??????????????????? # """ | | ????????????????????????########" ######### | | ???????????????????????????#""""" ## | | ?????????????????????""T"""#"F%"# % ## | | ???????????????????? % % %%= = # | | ??????????????????? % % # | | ???????????????????? % % # | | ????????????????????%% % % % % % # """ | | ???????????????????? % %+ """ | | ?????????????????????"" """ """" """" # """ | | ??????????????????????" """" """" """" # % % | | ??????????????????????????"" """" """" # | | ??????????????????????????"" """" """"% # """""" | | ???????????????????????????"?"""" """" ### """""" | | ???????????????????????????????"" """" #?# """""" | +----------------------------------------------------+ Best States ------------- Heat Dissipation 34 Energy Generation 10 Energy Capacity 250 Matter Stores 203 Matter Capacity 300 Sight Range 22 Robot Scan Range 13 Terrain Scan Density 210 Additional Mass Support 9 Armor Coverage 600 Evasion (%) 53 Targeting Accuracy 6 Recoil Reduction 1 Offensive Hacking 10 Item Schematics ----------------- None Robot Schematics ------------------ None Fabricated ------------ Nothing Alien Tech Used ----------------- None Achievements -------------- None Challenges ------------ None Game ------ Seed ArmageddonPoweredMultirail Manual? 0 Play Time 00:14:49 Cumulative 160.5 hours Start 2019.10.24 @ 03:16:12 End 2019.10.24 @ 03:28:13 Sessions 1 Manual Loads 0 Difficulty Rogue Special Mode Halloween2019/Abominations Game No. 174 Rogue 174 Adventurer 0 Explorer 0 Win Type - Total 3 Types 3/0/0/0/0/0/0 Lore% 49 Gallery% 67 Achievement% 42 Wizard Run 0 Options --------- ASCII 0 Keyboard 1 Movement Numpad Keybinds 0 Fullscreen 1 Font 18/SmallcapsGlow Map View 76x50 Tactical HUD 1 Map Filters NONE Filters NONE Steam 1 RUN: d4602e6a-74b4-4b78-9bea-6a90651593e2